fUSD/lending_fUSD_20240227
["ID","MTS","AMOUNT","RATE_DAILY","PERIOD"]
[315413235,1709019642516,-41769.0,0.00024,30]
[315413236,1709020026171,-1913.57502821,0.00019685,2]
[315413237,1709020026194,-1455.42,0.00019686,2]
[315413238,1709020026216,-1213.52145873,0.00020625,2]
[315413239,1709020026237,-250.60742658,0.00020625,2]
[315413240,1709020026258,-204.62942098,0.00020626,2]
[315413241,1709020026278,-465.83846625,0.00020626,2]
[315413242,1709020026299,-155.0,0.00020627,3]
[315413243,1709020026319,-2808.27860298,0.00020633,2]
[315413244,1709020029105,-150.4093043,0.00019684,2]
[315413245,1709020032140,-80.43689601,0.00019684,2]
[315413246,1709020032159,-287.04313401,0.00020633,2]
[315413247,1709020151114,-453.18233898,0.00020392,2]
[315413253,1709020231962,-191.91293503,0.0002029,2]
[315413254,1709020231973,-155.0,0.00020391,2]
[315413255,1709020231985,-469.96562239,0.00020392,2]
[315413256,1709020231996,-155.0,0.00020392,2]
[315413257,1709020232007,-29.67826301,0.00020633,2]
[315413258,1709020232019,-170.0,0.00020641,2]
[315413259,1709020232031,-465.83846625,0.00021476,2]
[315413260,1709020232041,-230.84620031,0.00021477,2]
[315413261,1709020232063,-150.0,0.00021479,2]
[315413262,1709020232080,-199.69,0.000215,2]
[315413263,1709020232093,-586.61641301,0.00021588,2]
[315413264,1709020232111,-1413.38358699,0.00021588,2]
[315413265,1709020232124,-500.0,0.00021598,2]
[315413266,1709020232136,-1154.10980387,0.00021635,2]
[315413267,1709020232149,-699.28006875,0.00021673,2]
[315413268,1709020232189,-832.36993125,0.00021673,2]
[315413269,1709020232201,-121.64458053,0.00021673,2]
[315413270,1709020232289,-2705.90541947,0.00021673,2]
[315413271,1709020232301,-29784.62,0.00021673,2]
[315413272,1709020232313,-150.99,0.00021673,2]
[315413273,1709020232327,-409.92,0.00021675,2]
[315413274,1709020232338,-3558.02,0.00021697,2]
[315413275,1709020232350,-170.0,0.00021737,2]
[315413276,1709020232363,-155.0,0.00021828,3]
[315413277,1709020232375,-1513.06,0.00021831,2]
[315413278,1709020232389,-300.0,0.00021912,2]
[315413279,1709020232402,-184.27,0.00021913,2]
[315413280,1709020232415,-704.59,0.00021913,2]
[315413281,1709020232428,-200.0,0.00021918,2]
[315413282,1709020232769,-150.0,0.00021942,2]
[315413283,1709020232790,-2696.0,0.00021943,2]
[315413284,1709020232801,-927.773,0.00021943,2]
[315413285,1709020232811,-170.544,0.00021943,2]
[315413286,1709020232820,-217.0,0.00021943,2]
[315413287,1709020232830,-1257.0,0.00021943,2]
[315413288,1709020232841,-1231.0,0.00021943,2]
[315413289,1709020232851,-357.689,0.00021943,2]
[315413290,1709020232860,-190.0,0.00021943,2]
[315413291,1709020232869,-1454.0,0.00021943,2]
[315413292,1709020232877,-338.0,0.00021943,2]
[315413293,1709020232887,-302.0,0.00021943,2]
[315413294,1709020232896,-13030.895,0.00021943,2]
[315413295,1709020232905,-5859.102,0.00021943,2]
[315413296,1709020232915,-1455.42,0.0002195,2]
[315413297,1709020232924,-2153.28755327,0.00021978,2]
[315413298,1709020232933,-552.0849576,0.00021979,2]
[315413299,1709020232945,-1408.79540108,0.00021979,2]
[315413300,1709020232954,-304.05444991,0.00021979,2]
[315413301,1709020232964,-1408.79540108,0.0002198,2]
[315413302,1709020232973,-2153.28755327,0.0002198,2]
[315413303,1709020232983,-775.18351922,0.00021981,2]
[315413304,1709020232992,-158.10831396,0.00021981,2]
[315413305,1709020233002,-235.62406564,0.00021981,2]
[315413306,1709020233011,-507.16634444,0.00021981,2]
[315413307,1709020233020,-235.62406564,0.00021982,2]
[315413308,1709020233029,-287.08417795,0.00021982,2]
[315413309,1709020233037,-279.06606697,0.00021982,2]
[315413310,1709020233046,-5050.24146018,0.00021983,2]
[315413311,1709020233055,-2153.28755327,0.00021983,2]
[315413312,1709020233064,-158.10831396,0.00021983,2]
[315413313,1709020233073,-5981.35431452,0.00021983,2]
[315413314,1709020233084,-235.62406564,0.00021983,2]
[315413315,1709020233093,-14028.44850039,0.00021984,2]
[315413316,1709020233102,-16614.87309574,0.00021984,2]
[315413317,1709020233111,-5981.35431452,0.00021984,2]
[315413318,1709020233120,-1818.08692572,0.00021985,2]
[315413319,1709020233129,-158.10831396,0.00021986,2]
[315413320,1709020233138,-14028.44850039,0.00021986,2]
[315413321,1709020233147,-654.5112933,0.00021986,2]
[315413322,1709020233155,-1408.79540108,0.00021986,2]
[315413323,1709020233164,-304.05444991,0.00021987,2]
[315413324,1709020233173,-263.72649911,0.00021988,2]
[315413325,1709020233182,-235.62406564,0.00021988,2]
[315413326,1709020233191,-16614.87309574,0.00021988,2]
[315413327,1709020233200,-1408.79540108,0.00021989,2]
[315413328,1709020233209,-654.5112933,0.00021989,2]
[315413329,1709020233218,-16614.87309574,0.00021989,2]
[315413330,1709020233227,-552.0849576,0.0002199,2]
[315413331,1709020233236,-1818.08692572,0.0002199,2]
[315413332,1709020233245,-5050.24146018,0.00021991,2]
[315413333,1709020233254,-775.18351922,0.00021992,2]
[315413334,1709020233263,-5050.24146018,0.00021992,2]
[315413335,1709020233272,-287.08417795,0.00021993,2]
[315413336,1709020233281,-5050.24146018,0.00021993,2]
[315413337,1709020233290,-775.18351922,0.00021993,2]
[315413338,1709020233299,-263.72649911,0.00021993,2]
[315413339,1709020233308,-654.5112933,0.00021993,2]
[315413340,1709020233317,-552.0849576,0.00021994,2]
[315413341,1709020233326,-507.16634444,0.00021994,2]
[315413342,1709020233335,-279.06606697,0.00021994,2]
[315413343,1709020233344,-14028.44850039,0.00021994,2]
[315413344,1709020233353,-16614.87309574,0.00021994,2]
[315413345,1709020233361,-304.05444991,0.00021995,2]
[315413346,1709020233370,-5981.35431452,0.00021995,2]
[315413347,1709020233379,-654.5112933,0.00021995,2]
[315413348,1709020233388,-158.10831396,0.00021995,2]
[315413349,1709020233397,-507.16634444,0.00021995,2]
[315413350,1709020233405,-263.72649911,0.00021995,2]
[315413351,1709020233414,-14028.44850039,0.00021995,2]
[315413352,1709020233423,-507.16634444,0.00021995,2]
[315413353,1709020233432,-287.08417795,0.00021996,2]
[315413354,1709020233441,-5981.35431452,0.00021997,2]
[315413355,1709020233450,-279.06606697,0.00021997,2]
[315413356,1709020233459,-1818.08692572,0.00021997,2]
[315413357,1709020233468,-775.18351922,0.00021997,2]
[315413358,1709020233477,-1818.08692572,0.00021998,2]
[315413359,1709020233486,-304.05444991,0.00021998,2]
[315413360,1709020233496,-2153.28755327,0.00021998,2]
[315413361,1709020233504,-287.08417795,0.00021998,2]
[315413362,1709020233514,-279.06606697,0.00021999,2]
[315413363,1709020233523,-552.0849576,0.00022,2]
[315413364,1709020233533,-263.72649911,0.00022,2]
[315413365,1709020233542,-23900.0,0.00022011,2]
[315413366,1709020233551,-2400.0,0.00022011,2]
[315413367,1709020233561,-1154.10980387,0.00022027,2]
[315413368,1709020233570,-1846.55,0.00022042,2]
[315413369,1709020233579,-278.55,0.0002206,2]
[315413370,1709020233589,-278.55,0.00022121,2]
[315413371,1709020233598,-5195.1664874,0.00022127,3]
[315413372,1709020233607,-1000.0,0.00022127,3]
[315413373,1709020233617,-182.00348632,0.0002213,3]
[315413374,1709020233627,-184.10068572,0.00022133,3]
[315413375,1709020233636,-278.55,0.00022181,2]
[315413376,1709020233646,-623.38,0.00022192,2]
[315413377,1709020233655,-278.55,0.00022242,2]
[315413378,1709020233665,-278.55,0.00022302,2]
[315413379,1709020233674,-658.33,0.00022328,2]
[315413380,1709020233684,-278.55,0.00022363,2]
[315413381,1709020233693,-278.55,0.00022423,2]
[315413382,1709020233703,-658.33,0.00022446,2]
[315413383,1709020233712,-278.55,0.00022484,2]
[315413384,1709020233722,-2751.0,0.00022497,2]
[315413385,1709020233732,-278.55,0.00022544,2]
[315413386,1709020233741,-658.33,0.00022563,2]
[315413387,1709020233751,-278.55,0.00022605,2]
[315413388,1709020233770,-278.55,0.00022665,2]
[315413389,1709020233781,-167.0,0.00022671,2]
[315413390,1709020233791,-658.33,0.00022681,2]
[315413391,1709020233801,-278.55,0.00022726,2]
[315413392,1709020233810,-158.61,0.0002274,2]
[315413393,1709020233819,-171.72,0.00022762,2]
[315413394,1709020233830,-278.55,0.00022786,2]
[315413395,1709020233839,-658.33,0.00022798,2]
[315413396,1709020233849,-918.59125208,0.000228,2]
[315413397,1709020233858,-683.41,0.00022801,2]
[315413398,1709020233868,-151.0,0.00022833,2]
[315413399,1709020233879,-278.55,0.00022847,2]
[315413400,1709020233891,-250.0,0.00022861,2]
[315413401,1709020233902,-300.0,0.000229,2]
[315413402,1709020233913,-6434.6817,0.000229,2]
[315413403,1709020233922,-4947.0,0.000229,2]
[315413404,1709020233931,-2367.0,0.000229,2]
[315413405,1709020233941,-278.55,0.00022907,2]
[315413406,1709020233950,-658.33,0.00022916,2]
[315413407,1709020233960,-1513.06,0.00022922,2]
[315413408,1709020233969,-199.69,0.0002293,2]
[315413409,1709020233979,-203.0,0.00022936,2]
[315413410,1709020233989,-278.55,0.00022968,2]
[315413411,1709020233999,-700.00000001,0.00023,2]
[315413412,1709020234009,-500.0,0.00023,2]
[315413413,1709020234018,-500.0,0.00023,2]
[315413414,1709020234029,-500.0,0.00023,2]
[315413415,1709020234038,-320.82958815,0.00023,2]
[315413416,1709020234047,-500.0,0.00023,2]
[315413417,1709020234057,-500.0,0.00023,2]
[315413418,1709020234068,-500.0,0.00023,2]
[315413419,1709020234078,-500.0,0.00023,2]
[315413420,1709020234090,-500.0,0.00023,2]
[315413421,1709020234099,-500.0,0.00023,2]
[315413422,1709020234109,-500.0,0.00023,2]
[315413423,1709020234118,-500.0,0.00023,2]
[315413424,1709020234128,-500.0,0.00023,2]
[315413425,1709020234138,-500.0,0.00023,2]
[315413426,1709020234148,-500.0,0.00023,2]
[315413427,1709020234157,-500.0,0.00023,2]
[315413428,1709020234167,-500.0,0.00023,2]
[315413429,1709020234177,-500.0,0.00023,2]
[315413430,1709020234186,-500.0,0.00023,2]
[315413431,1709020234195,-500.0,0.00023,2]
[315413432,1709020234205,-500.0,0.00023,2]
[315413433,1709020234216,-500.0,0.00023,2]
[315413434,1709020234226,-500.0,0.00023,2]
[315413435,1709020234236,-500.0,0.00023,2]
[315413436,1709020234246,-500.0,0.00023,2]
[315413437,1709020234256,-500.0,0.00023,2]
[315413438,1709020234265,-500.0,0.00023,2]
[315413439,1709020234275,-500.0,0.00023,2]
[315413440,1709020234285,-500.0,0.00023,2]
[315413441,1709020234295,-500.0,0.00023,2]
[315413442,1709020234304,-500.0,0.00023,2]
[315413443,1709020234313,-500.0,0.00023,2]
[315413444,1709020234322,-500.0,0.00023,2]
[315413445,1709020234332,-500.0,0.00023,2]
[315413446,1709020234341,-500.0,0.00023,2]
[315413447,1709020234351,-500.0,0.00023,2]
[315413448,1709020234360,-500.0,0.00023,2]
[315413449,1709020234370,-255.55,0.00023,2]
[315413450,1709020234379,-250.0,0.00023,2]
[315413451,1709020234389,-500.0,0.00023,2]
[315413452,1709020234399,-500.0,0.00023,2]
[315413453,1709020234408,-500.0,0.00023,2]
[315413454,1709020234417,-500.0,0.00023,2]
[315413455,1709020234427,-500.0,0.00023,2]
[315413456,1709020234436,-150.0,0.00023,2]
[315413457,1709020234446,-500.0,0.00023,2]
[315413458,1709020234456,-500.0,0.00023,2]
[315413459,1709020234465,-500.0,0.00023,2]
[315413460,1709020234475,-150.0,0.00023,2]
[315413461,1709020234485,-500.0,0.00023,2]
[315413462,1709020234494,-500.0,0.00023,2]
[315413463,1709020234504,-500.0,0.00023,2]
[315413464,1709020234513,-500.0,0.00023,2]
[315413465,1709020234522,-500.0,0.00023,2]
[315413466,1709020234532,-500.0,0.00023,2]
[315413467,1709020234541,-500.0,0.00023,2]
[315413468,1709020234551,-500.0,0.00023,2]
[315413469,1709020234560,-500.0,0.00023,2]
[315413470,1709020234569,-500.0,0.00023,2]
[315413471,1709020234579,-500.0,0.00023,2]
[315413472,1709020234588,-500.0,0.00023,2]
[315413473,1709020234597,-500.0,0.00023,2]
[315413474,1709020234607,-500.0,0.00023,2]
[315413475,1709020234616,-500.0,0.00023,2]
[315413476,1709020234625,-500.0,0.00023,2]
[315413477,1709020234635,-500.0,0.00023,2]
[315413478,1709020234644,-500.0,0.00023,2]
[315413479,1709020234654,-500.0,0.00023,2]
[315413480,1709020234663,-500.0,0.00023,2]
[315413481,1709020234672,-500.0,0.00023,2]
[315413482,1709020234682,-500.0,0.00023,2]
[315413483,1709020234691,-500.0,0.00023,2]
[315413484,1709020234700,-500.0,0.00023,2]
[315413485,1709020234710,-500.0,0.00023,2]
[315413486,1709020234719,-500.0,0.00023,2]
[315413487,1709020234730,-500.0,0.00023,2]
[315413488,1709020234738,-500.0,0.00023,2]
[315413489,1709020234747,-500.0,0.00023,2]
[315413490,1709020234756,-500.0,0.00023,2]
[315413491,1709020234766,-500.0,0.00023,2]
[315413492,1709020234775,-500.0,0.00023,2]
[315413493,1709020234784,-500.0,0.00023,2]
[315413494,1709020234794,-500.0,0.00023,2]
[315413495,1709020234803,-500.0,0.00023,2]
[315413496,1709020234813,-500.0,0.00023,2]
[315413497,1709020234822,-500.0,0.00023,2]
[315413498,1709020234831,-500.0,0.00023,2]
[315413499,1709020234841,-500.0,0.00023,2]
[315413500,1709020234850,-500.0,0.00023,2]
[315413501,1709020234860,-500.0,0.00023,2]
[315413502,1709020234869,-500.0,0.00023,2]
[315413503,1709020234878,-500.0,0.00023,2]
[315413504,1709020234888,-500.0,0.00023,2]
[315413505,1709020234897,-500.0,0.00023,2]
[315413506,1709020234906,-500.0,0.00023,2]
[315413507,1709020234916,-500.0,0.00023,2]
[315413508,1709020234925,-500.0,0.00023,2]
[315413509,1709020234935,-500.0,0.00023,2]
[315413510,1709020234944,-500.0,0.00023,2]
[315413511,1709020234954,-500.0,0.00023,2]
[315413512,1709020234963,-500.0,0.00023,2]
[315413513,1709020234972,-500.0,0.00023,2]
[315413514,1709020234982,-545.57,0.00023,2]
[315413515,1709020234992,-584.0,0.00023,2]
[315413516,1709020235002,-177.9,0.00023,2]
[315413517,1709020235012,-500.0,0.00023,2]
[315413518,1709020235021,-500.0,0.00023,2]
[315413519,1709020235031,-500.0,0.00023,2]
[315413520,1709020235041,-500.0,0.00023,2]
[315413521,1709020235051,-500.0,0.00023,2]
[315413522,1709020235060,-437.08143572,0.00023,2]
[315413523,1709020235070,-278.55,0.00023028,2]
[315413524,1709020235082,-5751.05192629,0.00023031,2]
[315413525,1709020235091,-658.33,0.00023033,2]
[315413526,1709020235100,-150.0,0.00023047,2]
[315413527,1709020235110,-278.55,0.00023089,2]
[315413528,1709020235120,-150.0,0.000231,2]
[315413529,1709020235130,-278.55,0.00023149,2]
[315413530,1709020235139,-658.33,0.00023151,2]
[315413531,1709020235149,-153.68,0.00023178,2]
[315413532,1709020235159,-918.59125208,0.000232,2]
[315413533,1709020235169,-2905.71774962,0.000232,10]
[315413534,1709020235178,-278.55,0.0002321,2]
[315413535,1709020235188,-182.54,0.00023217,2]
[315413536,1709020235198,-677.73945384,0.00023225,2]
[315413537,1709020235208,-1210.4060523,0.00023226,2]
[315413538,1709020235218,-1843.57777336,0.00023226,2]
[315413539,1709020235227,-204.35289495,0.00023226,2]
[315413540,1709020235238,-500.0,0.00023227,2]
[315413541,1709020235248,-500.0,0.00023227,2]
[315413542,1709020235258,-2355.58,0.00023227,2]
[315413543,1709020235268,-500.0,0.00023227,2]
[315413544,1709020235278,-500.0,0.00023227,2]
[315413545,1709020235288,-500.0,0.00023227,2]
[315413546,1709020235298,-500.0,0.00023227,2]
[315413547,1709020235307,-586.94,0.00023227,2]
[315413548,1709020235317,-500.0,0.00023227,2]
[315413549,1709020235326,-500.0,0.00023227,2]
[315413550,1709020235336,-500.0,0.00023227,2]
[315413551,1709020235345,-500.0,0.00023227,2]
[315413552,1709020235355,-500.0,0.00023227,2]
[315413553,1709020235365,-500.0,0.00023227,2]
[315413554,1709020235374,-500.0,0.00023227,2]
[315413555,1709020235384,-2851.52,0.00023227,2]
[315413556,1709020235393,-500.0,0.00023227,2]
[315413557,1709020235403,-500.0,0.00023227,2]
[315413558,1709020235412,-500.0,0.00023227,2]
[315413559,1709020235421,-500.0,0.00023227,2]
[315413560,1709020235431,-500.0,0.00023227,2]
[315413561,1709020235441,-500.0,0.00023227,2]
[315413562,1709020235451,-500.0,0.00023227,2]
[315413563,1709020235460,-500.0,0.00023227,2]
[315413564,1709020235469,-500.0,0.00023227,2]
[315413565,1709020235480,-768.44,0.00023227,2]
[315413566,1709020235489,-500.0,0.00023227,2]
[315413567,1709020235499,-500.0,0.00023227,2]
[315413568,1709020235508,-171.2413091,0.00023227,2]
[315413569,1709020235518,-502.13,0.00023227,2]
[315413570,1709020235528,-500.0,0.00023227,2]
[315413571,1709020235537,-500.0,0.00023227,2]
[315413572,1709020235547,-500.0,0.00023227,2]
[315413573,1709020235557,-500.0,0.00023227,2]
[315413574,1709020235566,-500.0,0.00023227,2]
[315413575,1709020235576,-500.0,0.00023227,2]
[315413576,1709020235585,-500.0,0.00023227,2]
[315413577,1709020235595,-155937.0,0.00023227,2]
[315413578,1709020235605,-200.0,0.00023229,2]
[315413579,1709020235615,-658.33,0.00023268,2]
[315413580,1709020235624,-500.0,0.00023274,2]
[315413581,1709020235634,-1531.65,0.00023317,2]
[315413582,1709020235644,-3020.67,0.00023368,2]
[315413583,1709020235654,-19999.99,0.00023368,2]
[315413584,1709020235664,-658.33,0.00023386,2]
[315413585,1709020235674,-167.0,0.00023419,2]
[315413586,1709020235685,-200.0,0.00023436,2]
[315413587,1709020235695,-800.0,0.00023436,2]
[315413588,1709020235704,-200.0,0.00023436,2]
[315413589,1709020235714,-500.0,0.00023436,2]
[315413590,1709020235723,-658.33,0.00023503,2]
[315413591,1709020235733,-150.0,0.00023548,2]
[315413592,1709020235742,-177.9,0.00023548,2]
[315413593,1709020235752,-276.0252,0.00023599,2]
[315413594,1709020235761,-2500.0,0.00023599,2]
[315413595,1709020235771,-918.59125208,0.00023599,2]
[315413596,1709020235780,-658.33,0.00023621,2]
[315413597,1709020235789,-1497.06146842,0.0002365,2]
[315413598,1709020235799,-10837.3488,0.0002366,2]
[315413599,1709020235808,-2279.8732,0.00023697,2]
[315413600,1709020235818,-2741.0258,0.00023697,2]
[315413601,1709020235828,-213.60121478,0.00023697,2]
[315413602,1709020235838,-217.39,0.00023697,2]
[315413603,1709020235847,-445.52198489,0.00023698,2]
[315413604,1709020235856,-500.0,0.00023698,2]
[315413605,1709020235866,-500.0,0.00023698,2]
[315413606,1709020235875,-2355.58,0.00023698,2]
[315413607,1709020235885,-500.0,0.00023698,2]
[315413608,1709020235895,-500.0,0.00023698,2]
[315413609,1709020235905,-500.0,0.00023698,2]
[315413610,1709020235914,-500.0,0.00023698,2]
[315413611,1709020235924,-586.94,0.00023698,2]
[315413612,1709020235934,-500.0,0.00023698,2]
[315413613,1709020235944,-500.0,0.00023698,2]
[315413614,1709020235953,-500.0,0.00023698,2]
[315413615,1709020235965,-500.0,0.00023698,2]
[315413616,1709020235975,-500.0,0.00023698,2]
[315413617,1709020235985,-500.0,0.00023698,2]
[315413618,1709020235995,-2851.52,0.00023698,2]
[315413619,1709020236005,-500.0,0.00023698,2]
[315413620,1709020236015,-500.0,0.00023698,2]
[315413621,1709020236025,-500.0,0.00023698,2]
[315413622,1709020236035,-500.0,0.00023698,2]
[315413623,1709020236045,-500.0,0.00023698,2]
[315413624,1709020236055,-500.0,0.00023698,2]
[315413625,1709020236064,-500.0,0.00023698,2]
[315413626,1709020236075,-500.0,0.00023698,2]
[315413627,1709020236254,-500.0,0.00023698,2]
[315413628,1709020236267,-768.44,0.00023698,2]
[315413629,1709020236276,-500.0,0.00023698,2]
[315413630,1709020236286,-500.0,0.00023698,2]
[315413631,1709020236298,-500.0,0.00023698,2]
[315413632,1709020236307,-502.13,0.00023698,2]
[315413633,1709020236317,-343.30044628,0.00023698,2]
[315413634,1709020236327,-500.0,0.00023698,2]
[315413635,1709020236336,-500.0,0.00023698,2]
[315413636,1709020236345,-500.0,0.00023698,2]
[315413637,1709020236355,-500.0,0.00023698,2]
[315413638,1709020236364,-500.0,0.00023698,2]
[315413639,1709020236373,-500.0,0.00023698,2]
[315413640,1709020236382,-500.0,0.00023698,2]
[315413641,1709020236391,-500.0,0.00023698,2]
[315413642,1709020236401,-500.0,0.00023699,2]
[315413643,1709020236410,-500.0,0.00023699,2]
[315413644,1709020236419,-500.0,0.00023699,2]
[315413645,1709020236428,-500.0,0.00023699,2]
[315413646,1709020236437,-500.0,0.00023699,2]
[315413647,1709020236446,-217.29098437,0.00023699,2]
[315413648,1709020236456,-500.0,0.00023699,2]
[315413649,1709020236465,-500.0,0.00023699,2]
[315413650,1709020236475,-500.0,0.00023699,2]
[315413651,1709020236485,-500.0,0.00023699,2]
[315413652,1709020236495,-500.0,0.00023699,2]
[315413653,1709020236505,-500.0,0.00023699,2]
[315413654,1709020236514,-500.0,0.00023699,2]
[315413655,1709020236524,-500.0,0.00023699,2]
[315413656,1709020236533,-500.0,0.00023699,2]
[315413657,1709020236543,-610.96,0.00023699,2]
[315413658,1709020236552,-500.0,0.00023699,2]
[315413659,1709020236562,-500.0,0.00023699,2]
[315413660,1709020236571,-500.0,0.00023699,2]
[315413661,1709020236580,-551.84,0.00023699,2]
[315413662,1709020236590,-500.0,0.00023699,2]
[315413663,1709020236599,-500.0,0.00023699,2]
[315413664,1709020236609,-500.0,0.00023699,2]
[315413665,1709020236618,-500.0,0.00023699,2]
[315413666,1709020236627,-511.58210787,0.00023699,2]
[315413667,1709020236636,-517.97104906,0.00023699,2]
[315413668,1709020236645,-500.0,0.00023699,2]
[315413669,1709020236655,-500.0,0.00023699,2]
[315413670,1709020236664,-500.0,0.00023699,2]
[315413671,1709020236673,-500.0,0.00023699,2]
[315413672,1709020236683,-522.63314358,0.00023699,2]
[315413673,1709020236692,-500.0,0.00023699,2]
[315413674,1709020236702,-500.0,0.00023699,2]
[315413675,1709020236711,-500.0,0.00023699,2]
[315413676,1709020236720,-500.0,0.00023699,2]
[315413677,1709020236730,-500.0,0.00023699,2]
[315413678,1709020236740,-500.0,0.00023699,2]
[315413679,1709020236748,-500.0,0.00023699,2]
[315413680,1709020236758,-500.0,0.00023699,2]
[315413681,1709020236768,-500.0,0.00023699,2]
[315413682,1709020236777,-500.0,0.00023699,2]
[315413683,1709020236787,-500.0,0.00023699,2]
[315413684,1709020236796,-500.0,0.00023699,2]
[315413685,1709020236806,-487.88155979,0.00023699,2]
[315413686,1709020236815,-500.0,0.00023699,2]
[315413687,1709020236824,-500.0,0.00023699,2]
[315413688,1709020236833,-500.0,0.00023699,2]
[315413689,1709020236842,-523.29037628,0.00023699,2]
[315413690,1709020236852,-500.0,0.00023699,2]
[315413691,1709020236861,-500.0,0.00023699,2]
[315413692,1709020236871,-500.0,0.00023699,2]
[315413693,1709020236881,-500.0,0.00023699,2]
[315413694,1709020236890,-500.0,0.00023699,2]
[315413695,1709020236901,-500.0,0.00023699,2]
[315413696,1709020236912,-500.0,0.00023699,2]
[315413697,1709020236922,-500.0,0.00023699,2]
[315413698,1709020236931,-500.0,0.00023699,2]
[315413699,1709020236940,-2703.24,0.00023699,2]
[315413700,1709020236949,-500.0,0.00023699,2]
[315413701,1709020236960,-2703.24,0.00023699,2]
[315413702,1709020236970,-555.44113521,0.00023699,2]
[315413703,1709020236982,-2703.24,0.00023699,2]
[315413704,1709020236994,-500.0,0.00023699,2]
[315413705,1709020237003,-2703.24,0.00023699,2]
[315413706,1709020237013,-512.73399876,0.00023699,2]
[315413707,1709020237022,-500.0,0.00023699,2]
[315413708,1709020237031,-500.0,0.00023699,2]
[315413709,1709020237040,-536.69,0.00023699,2]
[315413710,1709020237049,-521.50965934,0.00023699,2]
[315413711,1709020237059,-500.0,0.00023699,2]
[315413712,1709020237071,-540.77345471,0.00023699,2]
[315413713,1709020237085,-158.60615101,0.00023699,2]
[315413714,1709020237095,-500.0,0.00023699,2]
[315413715,1709020237107,-510.96522245,0.00023699,2]
[315413716,1709020237119,-500.0,0.00023699,2]
[315413717,1709020237129,-500.0,0.00023699,2]
[315413718,1709020237141,-500.0,0.00023699,2]
[315413719,1709020237151,-257.57081874,0.00023699,2]
[315413720,1709020237161,-347.0988352,0.00023699,2]
[315413721,1709020237171,-500.0,0.00023699,2]
[315413722,1709020237181,-637.18,0.00023699,2]
[315413723,1709020237190,-523.16122325,0.00023699,2]
[315413724,1709020237201,-500.0,0.00023699,2]
[315413725,1709020237211,-383.80035336,0.00023699,2]
[315413726,1709020237221,-500.0,0.00023699,2]
[315413727,1709020237231,-500.0,0.00023699,2]
[315413728,1709020237239,-500.0,0.00023699,2]
[315413729,1709020237249,-500.0,0.00023699,2]
[315413730,1709020237258,-500.0,0.00023699,2]
[315413731,1709020237266,-500.0,0.00023699,2]
[315413732,1709020237275,-500.0,0.00023699,2]
[315413733,1709020237284,-500.0,0.00023699,2]
[315413734,1709020237293,-500.0,0.00023699,2]
[315413735,1709020237302,-500.0,0.00023699,2]
[315413736,1709020237311,-517.68149649,0.00023699,2]
[315413737,1709020237320,-500.0,0.00023699,2]
[315413738,1709020237329,-566.56605757,0.00023699,2]
[315413739,1709020237338,-410.62662907,0.00023699,2]